bitfinex-derivatives/quotes_BNBF0:USTF0_20250305
["timestamp","ask_amount","ask_price","bid_price","bid_amount"]
[1741163493981,2.62664756,598.22,597.28,0.29193525]
[1741163494283,3.81976277,598.21,597.29,0.29193525]
[1741163494484,2.96130895,598.2,597.21,0.29193525]
[1741163494783,2.48255934,598.19,597.22,0.29193525]
[1741163494980,2.62708963,598.18,597.23,0.29193525]
[1741163495177,1.52777842,598.19,597.23,0.29193525]
[1741163495178,3.82014116,598.17,597.23,0.29193525]
[1741163495382,6.83056198,598.16,597.24,0.29193525]
[1741163495583,4.15450544,598.15,597.25,0.29193525]
[1741163495785,2.62708963,598.14,597.25,0.29193525]
[1741163495987,3.82027399,598.13,597.26,0.29193525]
[1741163496286,2.62722246,598.12,597.27,0.29193525]
[1741163496478,3.82027399,598.11,597.21,0.29193525]
[1741163496683,6.83082233,598.1,597.21,0.29193525]
[1741163496886,6.83082659,598.09,597.21,0.29193525]
[1741163497084,1.19305153,598.11,597.21,0.29193525]
[1741163497085,2.62719661,598.08,597.21,0.29193525]
[1741163497381,0.33436428,598.15,597.21,0.29193525]
[1741163498290,2.48300801,598.14,597.21,0.29193525]
[1741163498481,0.33437547,598.13,597.21,0.29193525]
[1741163498686,2.81738348,598.13,597.21,0.29193525]
[1741163498889,5.1586989,598.12,597.21,0.29193525]
[1741163499188,6.8310057,598.12,597.21,0.29193525]
[1741163499386,0.33437547,598.13,597.21,0.29193525]
[1741163499582,6.83096579,598.12,597.21,0.29193525]
[1741163499988,5.15871631,598.11,597.21,0.29193525]
[1741163500188,2.48311713,598.11,597.21,0.29193525]
[1741163500393,0.33437547,598.13,597.21,0.29193525]
[1741163500593,0.9550427,598.1,597.21,0.29193525]
[1741163500790,0.33437547,598.13,597.21,0.29193525]
[1741163500791,2.62728835,598.09,597.21,0.29193525]
[1741163500990,0.33437547,598.13,597.21,0.29193525]
[1741163501291,1.48477064,598.14,597.21,0.29193525]
[1741163501492,1.19361938,598.14,597.21,0.29193525]
[1741163501786,1.19361938,598.14,597.22,0.29193525]
[1741163501991,1.19361938,598.13,597.23,0.29193525]
[1741163502192,0.29111716,598.17,597.21,0.29193525]
[1741163502392,0.95503546,598.16,597.22,0.29193525]
[1741163502593,0.64506877,599.26,597.21,0.29193525]
[1741163502793,4.45666744,600.92,597.2,0.29111716]
[1741163502794,0.29107333,598.24,597.22,0.29193525]
[1741163503092,1.49726136,599.27,597.23,0.29193525]
[1741163503292,0.29096503,598.24,597.24,0.29193525]
[1741163503488,1.49726136,599.27,597.21,0.29193525]
[1741163503489,2.62667874,598.23,597.21,0.29193525]
[1741163503694,2.62667874,598.22,597.22,0.29193525]
[1741163503886,2.62667874,598.21,597.22,0.29193525]
[1741163504090,1.67170199,598.2,597.22,0.29193525]
[1741163504287,1.19357339,598.2,597.22,0.29193525]
[1741163504490,1.19357339,598.2,597.23,0.29193525]
[1741163504690,1.19357339,598.2,597.24,0.29193525]
[1741163504897,0.95493097,598.3,597.25,0.29193525]
[1741163505094,0.29107455,598.31,597.26,0.29193525]
[1741163505295,0.29107455,598.31,597.27,0.29193525]
[1741163505494,0.29107455,598.31,597.21,1.22505674]
[1741163505495,0.29107455,598.31,597.28,0.29193525]
[1741163505698,0.29107455,598.31,597.25,1.22505674]
[1741163505898,0.29107455,598.31,597.29,0.29188788]
[1741163506100,0.29107455,598.31,597.3,0.29188788]
[1741163506300,0.29107455,598.31,597.26,0.29188788]
[1741163506598,0.29107455,598.31,597.27,0.29188788]
[1741163506797,0.29107455,598.31,597.28,0.29188788]
[1741163507102,0.29107455,598.31,597.29,0.29188788]
[1741163507304,0.29107455,598.31,597.3,0.29188788]
[1741163507502,6.82773806,598.55,597.31,0.29188788]
[1741163507703,6.82773806,598.54,597.26,0.29188788]
[1741163507902,8.0206244,598.53,597.32,0.29188788]
[1741163508203,6.82773806,598.52,597.33,0.29188788]
[1741163508398,6.82773806,598.51,597.33,0.29188788]
[1741163508595,6.82773806,598.5,597.34,0.29188788]
[1741163508800,6.82773806,598.49,597.34,0.29188788]
[1741163509000,6.82773806,598.48,597.35,0.29188788]
[1741163509197,2.62594662,598.47,597.26,0.29188788]
[1741163509396,2.62594662,598.46,597.27,0.29188788]
[1741163509600,2.62594662,598.45,597.28,0.29188788]
[1741163509798,2.62594662,598.44,597.3,1.22505674]
[1741163510003,2.62594662,598.43,597.31,0.29188788]
[1741163510299,3.81883296,598.42,597.32,0.29188788]
[1741163510502,0.99705188,598.72,597.33,0.29188788]
[1741163510503,1.19288634,598.41,597.33,0.29188788]
[1741163510703,1.19288634,598.41,597.34,0.29188788]
[1741163510902,1.19288634,598.4,597.35,0.29188788]
[1741163511099,1.19288634,598.4,597.31,0.29188788]
[1741163511297,1.19288634,598.4,597.32,0.29188788]
[1741163511503,1.19288634,598.4,597.31,0.29188788]
[1741163511696,0.29102222,598.39,597.33,0.29188788]
[1741163511899,0.29102222,598.39,597.34,0.29188788]
[1741163512105,0.29102222,598.39,597.35,0.29188788]
[1741163512306,0.29102222,598.39,597.32,1.22505674]
[1741163512603,0.29102222,598.39,597.33,0.29188788]
[1741163513103,0.29102222,598.39,597.34,0.29187454]
[1741163513305,2.62453216,598.38,597.33,0.29187454]
[1741163513603,2.62453216,598.37,597.33,0.29187454]
[1741163513803,2.62453216,598.36,597.33,0.29187454]
[1741163514102,2.62453216,598.35,597.33,0.29187454]
[1741163514303,2.62453216,598.34,597.33,0.29187454]
[1741163514504,1.48322866,598.37,597.33,0.29187454]
[1741163514702,3.81691452,598.36,597.33,0.29187454]
[1741163514906,2.62474215,598.35,597.31,0.29104047]
[1741163515101,2.62474215,598.34,597.32,0.29187454]
[1741163515307,1.19217237,598.36,597.32,0.29187454]
[1741163515607,1.19217237,598.33,597.32,0.29187454]
[1741163515905,1.19217237,598.33,597.33,0.29187454]
[1741163516105,1.19217237,598.32,597.34,0.29187454]
[1741163516399,1.19217237,598.32,597.35,0.29187454]
[1741163516603,6.8241795,598.59,597.21,0.29187454]
[1741163516799,6.8241795,598.58,597.22,0.29187454]
[1741163516998,6.8241795,598.57,597.21,0.29187454]
[1741163517198,6.8241795,598.56,597.23,0.29187454]
[1741163517404,6.8241795,598.55,597.24,0.29187454]
[1741163517605,8.01623732,598.54,597.2,1.22505674]
[1741163517807,6.8241795,598.53,597.24,0.29102952]
[1741163518000,6.8241795,598.52,597.25,0.2918721]
[1741163518306,5.34283424,598.51,597.25,0.2918721]
[1741163518507,2.624566,598.5,597.25,0.2918721]
[1741163518703,2.624566,598.49,597.25,0.2918721]
[1741163518909,2.624566,598.48,597.25,0.2918721]
[1741163519102,2.624566,598.47,597.25,0.2918721]
[1741163519408,3.81662382,598.46,597.25,0.2918721]
[1741163519613,6.8235194,598.45,597.25,0.2918721]
[1741163519909,8.01557722,598.44,597.25,0.2918721]
[1741163520110,2.624566,598.43,597.25,0.2918721]
[1741163520304,2.624566,598.42,597.25,0.2918721]
[1741163520612,2.624566,598.41,597.25,0.2918721]
[1741163520811,6.82406709,598.4,597.26,0.2918721]
[1741163521003,8.01612491,598.39,597.27,0.29192252]
[1741163521204,2.47997522,598.38,597.28,0.29192252]
[1741163521405,2.6246327,598.37,597.29,0.29192252]
[1741163521611,2.6246327,598.36,597.3,0.29192252]
[1741163521812,2.6246327,598.35,597.31,0.29192252]
[1741163522006,2.6246327,598.34,597.32,0.29192252]
[1741163522205,2.6246327,598.33,597.33,0.29192252]
[1741163522409,2.6246327,598.33,597.24,0.29102952]
[1741163522410,3.81669052,598.32,597.34,0.29192252]
[1741163522605,2.6246327,598.31,597.35,0.29192252]
[1741163522805,2.6246327,598.3,597.28,0.29107212]
[1741163523006,2.6246327,598.29,597.29,0.29192252]
[1741163523209,1.19205782,598.29,597.3,0.29192252]
[1741163523409,1.19205782,598.29,597.31,0.29192252]
[1741163523806,0.29107212,598.28,597.33,1.22505674]
[1741163524011,0.29107212,598.28,597.34,0.29192252]
[1741163524213,0.29107212,598.28,597.33,1.22505674]
[1741163524214,0.29107212,598.28,597.35,0.29192252]
[1741163524415,6.82547738,598.47,597.36,0.29192252]
[1741163524610,6.82547738,598.46,597.37,0.29192252]
[1741163524810,2.62558287,598.45,597.38,0.29192252]
[1741163525014,2.62558287,598.44,597.39,0.29192252]
[1741163525215,1.19267837,598.43,597.4,0.29192252]
[1741163525415,1.19267837,598.43,597.41,0.29192252]
[1741163525713,1.19267837,598.43,597.42,0.29192252]
[1741163525914,1.19267837,598.43,597.43,0.29192252]
[1741163526115,0.29100031,598.44,597.44,0.29183662]
[1741163526410,0.29100031,598.44,597.45,0.29183662]
[1741163526615,0.29100031,598.44,597.46,0.29183662]
[1741163526814,0.29100031,598.44,597.47,0.29183662]
[1741163527013,0.29100031,598.44,597.48,0.29183662]
[1741163527312,0.29100031,598.44,597.41,1.22505674]
[1741163527313,0.29100031,598.44,597.49,0.29183662]
[1741163527509,0.29100031,598.44,597.5,0.29183662]
[1741163527714,0.29100031,598.44,597.51,0.29183662]
[1741163527914,0.29100031,598.44,597.52,0.29181816]
[1741163528116,0.29100031,598.44,597.53,0.29181816]
[1741163528312,0.29100031,598.44,597.54,0.29181816]
[1741163528513,8.01851753,598.81,597.55,0.29181816]
[1741163528815,0.2909626,598.48,597.56,0.29181816]
[1741163529112,1.19261629,598.79,597.57,0.29181816]
[1741163529317,1.19261629,598.79,597.58,0.29181816]
[1741163529814,0.2907997,599.05,597.59,0.29181816]
[1741163530014,0.2907997,599.05,597.6,0.29181816]
[1741163530314,0.2907997,599.05,597.61,0.29181816]
[1741163530517,0.2907997,599.05,597.62,0.29181816]
[1741163530813,0.2907997,599.05,597.63,0.29181816]
[1741163531016,0.2907997,599.05,597.64,0.29181816]
[1741163531315,0.2907997,599.05,597.65,0.29181816]
[1741163531515,2.61882252,599.35,597.66,0.29181816]
[1741163531712,0.2907171,599.11,597.68,0.33462722]
[1741163531915,2.95252292,599.34,597.68,0.33462722]
[1741163532115,0.3337004,599.34,597.68,0.33462722]
[1741163532315,0.3337004,599.34,597.69,0.29181816]
[1741163532516,0.3337004,599.34,597.7,0.29181816]
[1741163532716,0.29060179,599.33,597.71,0.29181816]
[1741163532916,0.29060179,599.33,597.72,0.29181816]
[1741163533119,0.29060179,599.33,597.73,0.29181816]
[1741163533418,0.29060179,599.33,597.74,0.29181816]
[1741163533720,0.29060179,599.33,597.75,0.29181816]
[1741163534017,0.29060179,599.33,597.76,0.29181816]
[1741163534213,0.3337004,599.34,597.77,0.29181816]
[1741163534416,0.3337004,599.34,597.78,0.29181816]
[1741163534626,0.3337004,599.34,597.79,0.29181816]
[1741163534826,0.3337004,599.34,597.68,0.33462722]
[1741163534827,0.3337004,599.34,597.8,0.29181816]
[1741163535026,0.3337004,599.34,597.81,0.29181816]
[1741163535232,0.3337004,599.34,597.83,0.33454326]
[1741163535426,0.3337004,599.34,597.84,0.29181816]
[1741163535630,0.3337004,599.34,597.85,0.29181816]
[1741163535829,0.3337004,599.34,597.86,0.29181816]
[1741163536025,0.3337004,599.34,597.87,0.29181816]
[1741163536229,0.3337004,599.34,597.88,0.29181816]
[1741163536430,0.3337004,599.34,597.89,0.29181816]
[1741163536629,0.3337004,599.34,597.9,0.62632225]
[1741163536829,0.93601064,599.6,597.91,0.29181816]
[1741163537131,0.98387903,599.91,597.92,0.29181816]
[1741163537332,0.33339445,599.89,597.93,0.29181816]
[1741163537533,7.89535889,599.88,597.94,0.29181816]
[1741163537735,6.71498492,599.87,597.95,0.29181816]
[1741163537934,6.71498492,599.86,597.96,0.29181816]
[1741163538132,6.71498492,599.85,597.97,0.29181816]
[1741163538328,7.88929959,599.84,597.91,0.29181816]
[1741163538528,6.71498492,599.83,597.92,0.29181816]
[1741163538727,7.88929959,599.82,597.91,0.29181816]
[1741163538932,6.71498492,599.81,597.92,0.29181816]
[1741163539132,2.58263397,599.8,597.91,0.29181816]
[1741163539333,1.17431467,599.82,597.92,0.29181816]
[1741163539633,1.17431467,599.79,597.93,0.29181816]
[1741163539835,1.17431467,599.79,597.91,0.29181816]
[1741163540135,0.93184979,599.86,597.92,0.29181816]
[1741163540329,1.17431467,599.87,597.92,0.29181816]
[1741163540535,2.10616446,599.87,597.93,0.29181816]
[1741163540734,0.93184979,599.86,597.91,0.29181816]
[1741163540936,1.17431467,599.87,597.92,0.29181816]
[1741163540937,0.93184979,599.85,597.92,0.29181816]
[1741163541137,0.93184979,599.84,597.93,0.62630547]
[1741163541338,0.93184979,599.86,597.94,0.29181816]
[1741163541529,1.17431467,599.87,597.95,0.29181816]
[1741163541731,1.17431467,599.87,597.96,0.29181816]
[1741163541933,0.33339445,599.89,597.96,0.29181816]
[1741163542135,0.33339445,599.89,597.97,0.29181816]
[1741163542336,0.33339445,599.89,597.94,0.29181816]
[1741163542535,0.33339445,599.89,597.98,0.29181816]
[1741163542735,0.33339445,599.89,598.0,0.33444816]
[1741163542934,0.33339445,599.89,598.01,0.29181816]
[1741163543331,0.33339445,599.89,598.03,0.33443138]
[1741163543532,0.33339445,599.89,598.04,0.29181816]
[1741163543732,0.33339445,599.89,598.05,0.29106039]
[1741163543938,0.33339445,599.89,598.07,0.33440901]
[1741163544243,0.33339445,599.89,598.08,0.29106039]
[1741163544542,0.33339445,599.89,598.09,0.29106039]
[1741163544741,0.33339445,599.89,598.07,0.33440901]
[1741163544742,0.33339445,599.89,598.1,0.29106039]
[1741163544942,0.33339445,599.89,598.11,0.29106039]
[1741163545141,0.33339445,599.89,598.12,0.29106039]
[1741163545343,0.33339445,599.89,598.07,0.33440901]
[1741163545344,0.33339445,599.89,598.14,0.33436987]
[1741163545643,0.33339445,599.89,598.15,0.29106039]
[1741163545836,0.33339445,599.89,598.16,0.29106039]
[1741163546040,0.33339445,599.89,598.17,0.29106039]
[1741163546240,0.33339445,599.89,598.18,0.29106039]
[1741163546440,0.33339445,599.89,598.19,0.29106039]
[1741163546637,0.33339445,599.89,598.21,0.33433075]
[1741163546943,0.33339445,599.89,598.22,0.29106039]
[1741163547145,0.33339445,599.89,598.23,0.29106039]
[1741163547343,0.33339445,599.89,598.25,0.33430839]
[1741163547539,0.33339445,599.89,598.26,0.29106039]
[1741163547741,0.33339445,599.89,598.27,0.29106039]
[1741163547944,0.33339445,599.89,598.26,0.29106039]
[1741163548142,0.33339445,599.89,598.27,0.29106039]
[1741163548344,0.33339445,599.89,598.25,0.33430839]
[1741163548345,0.33339445,599.89,598.28,0.33429163]
[1741163548644,0.33339445,599.89,598.29,0.29106039]
[1741163549445,0.33339445,599.89,598.31,0.33427487]
[1741163549647,0.33339445,599.89,598.32,0.29106039]
[1741163549946,0.33339445,599.89,598.33,0.29106039]
[1741163550137,0.33339445,599.89,598.35,0.33425252]
[1741163550338,0.33339445,599.89,598.36,0.29106039]
[1741163550539,0.33339445,599.89,598.37,0.29113975]
[1741163550844,0.33339445,599.89,598.38,0.29113975]
[1741163551043,0.33339445,599.89,598.39,0.29113975]
[1741163551243,0.33339445,599.89,598.4,0.29113975]
[1741163551542,0.33339445,599.89,598.41,0.29113975]
[1741163551742,0.33339445,599.89,598.42,0.29113975]
[1741163551945,0.33339445,599.89,598.43,0.29113975]
[1741163552245,0.33339445,599.89,598.44,0.625342]
[1741163552438,0.33339445,599.89,598.45,0.29113975]
[1741163552638,0.33339445,599.89,598.46,0.29113975]
[1741163552944,0.33339445,599.89,598.47,0.62532525]
[1741163553141,0.33339445,599.89,598.48,0.29113975]
[1741163553337,0.33339445,599.89,598.5,0.33416875]
[1741163553539,0.33339445,599.89,598.51,0.29113975]
[1741163553746,0.29025639,599.88,598.52,0.33415758]
[1741163553944,0.29025639,599.88,598.53,0.29113975]
[1741163554141,0.29025639,599.88,598.54,0.62528617]
[1741163554339,0.29025639,599.88,598.55,0.62528059]
[1741163554540,0.29025639,599.88,598.56,0.625275]
[1741163554741,0.6236564,599.88,598.57,0.62526942]
[1741163554942,0.6236564,599.88,598.58,0.62526384]
[1741163555146,0.6236564,599.88,598.59,0.62525826]
[1741163555339,0.6236564,599.88,598.6,0.62525268]
[1741163555645,0.33340001,599.88,598.61,0.62521886]
[1741163555840,0.29034236,599.87,598.62,0.62521328]
[1741163556144,0.29034236,599.87,598.63,0.6252077]
[1741163556346,0.29034236,599.87,598.64,0.62520212]
[1741163556546,0.29034236,599.87,598.65,0.29111152]
[1741163556747,0.29034236,599.87,598.66,0.29111152]
[1741163557045,0.29034236,599.87,598.64,0.3340906]
[1741163557046,0.29034236,599.87,598.67,0.29111152]
[1741163557241,0.29034236,599.87,598.68,0.29111152]
[1741163557447,0.29034236,599.87,598.69,0.29111152]
[1741163557646,0.29034236,599.87,598.64,0.3340906]
[1741163557647,0.29034236,599.87,598.7,0.29111152]
[1741163557847,0.29034236,599.87,598.64,0.3340906]
[1741163557848,0.29034236,599.87,598.71,0.29111152]
[1741163558047,0.29034236,599.87,598.72,0.29111152]
[1741163558250,0.29034236,599.87,598.65,0.29111152]
[1741163558451,0.29034236,599.87,598.66,0.29111152]
[1741163558652,0.29034236,599.87,598.67,0.29111152]
[1741163558852,0.29034236,599.87,598.65,0.29111152]
[1741163559153,0.29034236,599.87,598.66,0.29111152]
[1741163559347,0.29034236,599.87,598.65,0.29111152]
[1741163559549,0.29034236,599.87,598.66,0.29111152]
[1741163559755,0.29034236,599.87,598.67,0.29111152]
[1741163560153,0.29034236,599.87,598.64,0.3340906]
[1741163560154,0.29034236,599.87,598.68,0.29111152]
[1741163560455,0.29034236,599.87,598.65,0.29111152]
[1741163560655,0.29034236,599.87,598.66,0.29111152]
[1741163560854,0.29034236,599.87,598.67,0.29111152]
[1741163561155,0.29034236,599.87,598.68,0.29111152]
[1741163561355,0.29034236,599.87,598.69,0.29111152]
[1741163561555,0.33340001,599.88,598.64,0.3340906]
[1741163561556,0.33340001,599.88,598.65,0.29111152]
[1741163561756,0.29036417,599.86,598.66,0.29111152]
[1741163562056,0.29036417,599.86,598.67,0.29115288]
[1741163562256,0.29036417,599.86,598.68,0.29115288]
[1741163562449,0.29036417,599.86,598.69,0.29114532]
[1741163562652,0.29036417,599.86,598.7,0.29114532]
[1741163562853,0.29036417,599.86,598.65,0.29114532]
[1741163563053,0.29036417,599.86,598.66,0.29114532]
[1741163563249,0.29036417,599.86,598.67,0.29114532]
[1741163563453,0.29036417,599.86,598.65,0.29114532]
[1741163564056,0.33341668,599.85,598.64,0.3340906]
[1741163564360,0.33341668,599.85,598.65,0.29111376]
[1741163564760,0.29037386,599.84,598.66,0.29111376]
[1741163565057,0.29037386,599.84,598.67,0.29111376]
[1741163565256,0.29037386,599.84,598.68,0.29111376]
[1741163565462,0.29037386,599.84,598.69,0.29111376]
[1741163565658,0.29037386,599.84,598.7,0.29111376]
[1741163565855,0.29037386,599.84,598.71,0.29111376]
[1741163566055,0.3334278,599.83,598.72,0.29111376]
[1741163566562,0.3334278,599.83,598.73,0.29111376]
[1741163566862,0.3334278,599.83,598.74,0.29111376]
[1741163567162,0.3334278,599.83,598.75,0.29111376]
[1741163567461,0.3334278,599.83,598.76,0.29111376]
[1741163567662,0.29041263,599.82,598.65,0.29111376]
[1741163567863,0.29041263,599.82,598.66,0.29121674]
[1741163568157,0.29041263,599.82,598.67,0.29121674]
[1741163568360,0.29041263,599.82,598.64,0.3340906]
[1741163568361,0.29041263,599.82,598.65,0.29121674]
[1741163568553,0.29041263,599.82,598.66,0.29121674]
[1741163568753,0.29041263,599.82,598.64,0.3340906]
[1741163568754,0.29041263,599.82,598.65,0.29121674]
[1741163568959,0.33343892,599.81,598.66,0.29121674]
[1741163569260,0.33343892,599.81,598.65,0.29121674]
[1741163569460,0.33343892,599.81,598.66,0.29121674]
[1741163569662,0.33343892,599.81,598.65,0.29121674]
[1741163569961,0.33343892,599.81,598.66,0.29121674]
[1741163570153,0.33343892,599.81,598.65,0.29121674]
[1741163570358,0.33343892,599.81,598.66,0.29121674]
[1741163570555,0.33343892,599.81,598.65,0.29121674]
[1741163570754,0.33343892,599.81,598.66,0.29121674]
[1741163570958,0.33343892,599.81,598.65,0.29121674]
[1741163571158,0.33343892,599.81,598.66,0.29121674]
[1741163571455,0.33343892,599.81,598.67,0.29121674]
[1741163571661,0.33343892,599.81,598.68,0.29121674]
[1741163571857,0.29030119,599.8,598.68,0.29121674]
[1741163572161,0.29030119,599.8,598.69,0.29121674]
[1741163572364,0.29030119,599.8,598.7,0.29121674]
[1741163572664,0.29030119,599.8,598.71,0.29121674]
[1741163573063,0.29030119,599.8,598.64,0.3340906]
[1741163573064,0.29030119,599.8,598.72,0.29121674]
[1741163573365,0.29030119,599.8,598.73,0.29121674]
[1741163573563,0.33343892,599.81,598.65,0.29121674]
[1741163573764,0.33343892,599.81,598.66,0.62529618]
[1741163573965,0.33343892,599.81,598.67,0.29121674]
[1741163574161,0.33343892,599.81,598.68,0.33406828]
[1741163574660,0.33343892,599.81,598.69,0.29113366]
[1741163574859,0.33343892,599.81,598.7,0.29113366]
[1741163575064,0.33343892,599.81,598.71,0.29113366]
[1741163575265,0.33343892,599.81,598.72,0.29113366]
[1741163575463,0.33343892,599.81,598.73,0.29111925]
[1741163575664,0.33343892,599.81,598.74,0.29111925]
[1741163575861,0.33343892,599.81,598.75,0.29111925]
[1741163576262,0.33343892,599.81,598.69,0.3340627]
[1741163576263,0.33343892,599.81,598.76,0.29111925]
[1741163576466,0.33343892,599.81,598.77,0.29111925]
[1741163576766,0.33343892,599.81,598.78,0.29111925]
[1741163577066,0.33343892,599.81,598.79,0.29111925]
[1741163577266,0.33343892,599.81,598.7,0.29111925]
[1741163577462,0.33343892,599.81,598.71,0.29111925]
[1741163577663,0.33343892,599.81,598.69,0.3340627]
[1741163577664,0.29027092,599.8,598.72,0.29111925]
[1741163577860,0.29027092,599.8,598.69,0.3340627]
[1741163578067,0.29027092,599.8,598.7,0.29112631]
[1741163578263,0.29027092,599.8,598.71,0.29112631]
[1741163578466,0.29027092,599.8,598.69,0.3340627]
[1741163578467,0.29027092,599.8,598.72,0.29112631]
[1741163578667,0.29027092,599.8,598.73,0.29112631]
[1741163578860,0.29027092,599.8,598.7,0.29112631]
[1741163579062,0.29027092,599.8,598.71,0.29112631]
[1741163579268,0.29027092,599.8,598.72,0.29112631]
[1741163579567,0.33343892,599.81,598.73,0.29112631]
[1741163579768,0.33343892,599.81,598.74,0.29112631]
[1741163579968,0.33343892,599.81,598.75,0.29112631]
[1741163580168,0.33343892,599.81,598.7,0.29112631]
[1741163580469,0.33343892,599.81,598.71,0.29112631]
[1741163580664,0.33343892,599.81,598.72,0.29112631]
[1741163580869,0.33343892,599.81,598.73,0.29112631]
[1741163581068,0.33343892,599.81,598.74,0.29112631]
[1741163581269,0.33343892,599.81,598.75,0.29112631]
[1741163581569,0.33343892,599.81,598.76,0.29112631]
[1741163581766,0.33343892,599.81,598.77,0.29112631]
[1741163581966,0.33343892,599.81,598.78,0.29112631]
[1741163582166,0.33343892,599.81,598.79,0.29112631]
[1741163582465,0.33343892,599.81,598.69,0.3340627]
[1741163582466,0.33343892,599.81,598.8,0.29112631]
[1741163582662,0.33343892,599.81,598.7,0.29112631]
[1741163582870,0.33343892,599.81,598.71,0.29112631]
[1741163583069,0.33343892,599.81,598.69,0.3340627]
[1741163583365,0.33343892,599.81,598.7,0.29111759]
[1741163583569,0.33343892,599.81,598.71,0.29111759]
[1741163583772,0.33343892,599.81,598.72,0.29111759]
[1741163583966,0.33343892,599.81,598.73,0.29111759]
[1741163584167,0.33343892,599.81,598.74,0.29111759]
[1741163584369,0.33343892,599.81,598.75,0.29111759]
[1741163584573,0.33343892,599.81,598.76,0.29111759]
[1741163584871,0.33343892,599.81,598.77,0.29111759]
[1741163585171,0.33343892,599.81,598.78,0.29111759]
[1741163585371,0.33343892,599.81,598.79,0.29111759]
[1741163585573,0.33343892,599.81,598.8,0.29111759]
[1741163585767,0.33343892,599.81,598.81,0.29111759]
[1741163585966,0.33343892,599.81,598.82,0.29111759]
[1741163586167,0.33343892,599.81,598.72,1.22505674]
[1741163586371,0.33343892,599.81,598.73,0.29111759]
[1741163587167,0.33343892,599.81,598.74,0.29111759]
[1741163587372,0.33343892,599.81,598.75,0.29111759]
[1741163587671,0.92696076,599.8,598.76,0.29111759]
[1741163587871,0.92696076,599.8,598.77,0.29111759]
[1741163588071,0.92696076,599.79,598.73,0.29111759]
[1741163588270,2.56023657,599.78,598.74,0.29111759]
[1741163588469,2.56023657,599.77,598.75,0.29111759]
[1741163588675,2.56023657,599.76,598.76,0.29111759]
[1741163588876,1.63327581,599.75,598.77,0.29111759]
[1741163589076,1.18544505,599.75,598.7,0.29111759]
[1741163589377,2.56023657,599.74,598.71,0.29111759]
[1741163589572,2.56023657,599.73,598.72,0.29111759]
[1741163589874,1.6639383,599.72,598.73,0.29111759]
[1741163590076,1.18544505,599.71,598.69,0.29111759]
[1741163590273,1.18544505,599.7,598.7,0.29111759]
[1741163590579,1.18544505,599.7,598.78,1.22505674]
[1741163590580,2.59089906,599.69,598.78,1.22505674]
[1741163590767,1.18544505,599.7,598.78,1.22505674]
[1741163590768,2.59089906,599.68,598.79,0.29111759]
[1741163590975,1.47582254,599.68,598.79,0.29111759]
[1741163591274,0.29037749,599.68,598.79,0.29111759]
[1741163591475,1.18544505,599.8,598.79,0.29111759]
[1741163591476,1.66531039,599.79,598.79,0.29111759]
[1741163591673,2.85075544,599.8,598.79,0.29111759]
[1741163591877,1.18544505,599.78,598.83,1.22505674]
[1741163592077,1.18544505,599.78,598.84,0.29111759]
[1741163592272,0.33343892,599.81,598.83,1.22505674]
[1741163592478,2.61442024,599.8,598.84,0.29117598]
[1741163592678,0.32030777,599.81,598.84,0.29117598]
[1741163592875,1.18957379,599.79,598.84,0.29117598]
[1741163593282,2.61511437,599.78,598.84,0.29117598]
[1741163593482,0.33346116,599.77,598.84,0.29117598]
[1741163594182,1.18957379,599.76,598.82,0.29117598]
[1741163594384,0.33347228,599.75,598.83,0.29117598]
[1741163594580,0.33347228,599.75,598.82,0.29117598]
[1741163594881,0.33347228,599.75,598.83,0.29117598]
[1741163595082,0.33347228,599.75,598.84,0.29054183]
[1741163595277,0.33347228,599.75,598.85,0.29054183]
[1741163595479,0.33347228,599.75,598.82,0.29054183]
[1741163595783,0.33347228,599.75,598.83,0.29054183]
[1741163596082,0.33347228,599.75,598.81,1.22505674]
[1741163596083,0.33347228,599.75,598.84,0.29054183]
[1741163596284,0.33347228,599.75,598.85,0.29054183]
[1741163596477,0.33347228,599.75,598.86,0.29054183]
[1741163596681,0.33347228,599.75,598.81,1.22505674]
[1741163596682,0.33347228,599.75,598.82,0.29054183]
[1741163596878,0.33347228,599.75,598.83,0.29054183]
[1741163597078,0.33347228,599.75,598.84,0.29054183]
[1741163597283,0.33347228,599.75,598.82,0.29054183]
[1741163597486,0.33347228,599.75,598.62,1.22505674]
[1741163597487,0.33347228,599.75,598.83,0.29054183]
[1741163597780,0.33347228,599.75,598.62,1.22505674]
[1741163597781,0.33347228,599.75,598.84,0.29054183]
[1741163597980,1.19237503,599.74,598.85,0.29054183]
[1741163598185,1.19237503,599.74,598.63,0.29054183]
[1741163598383,0.33347228,599.75,598.62,1.22505674]
[1741163598580,2.61684364,599.74,598.63,0.29053011]
[1741163598787,2.90722719,599.73,598.65,1.22505674]
[1741163598984,1.6675121,599.72,598.66,0.29053011]
[1741163599184,1.19281512,599.72,598.66,0.29053011]
[1741163599684,0.29038355,599.73,598.66,0.29053011]
[1741163600989,0.29038355,599.73,598.65,0.29053011]
[1741163601187,0.29038355,599.73,598.66,0.29053011]
[1741163601383,0.29038355,599.73,598.64,0.29038113]
[1741163601384,0.29038355,599.73,598.65,0.29053011]
[1741163601589,0.29038355,599.73,598.66,0.29053011]
[1741163601786,0.33347228,599.75,598.65,0.29053011]
[1741163601984,0.33347228,599.75,598.66,0.29053011]
[1741163603091,0.33347228,599.75,598.65,0.33408502]